[Event "Srdja Dragasevic Memorial-A 2024"]
[Site "Cetinje"]
[Date "2024.06.23"]
[Round "1.13"]
[White "Engin, Onur Cinar"]
[Black "Damljanovic, Branko"]
[Result "1-0"]
[ECO "C55"]
[WhiteElo "2114"]
[BlackElo "2364"]
[Annotator "RC"]
[PlyCount "75"]
[EventDate "2024.06.23"]
[EventType "swiss"]
[EventCountry "MNE"]
[SourceTitle "playchess.com"]
[Source "ChessBase"]
[SourceQuality "1"]
[TimeControl "40/5400+30:1800+30"]

1. e4 {[%emt 0:00:05]} e5 {[%emt 0:01:06]} 2. Nf3 {[%emt 0:00:08]} Nc6 {[%emt 0:00:07]} 3. Bc4 {[%emt 0:00:32]} Be7 {[%emt 0:00:18]} 4. d4 {[%emt 0:02:05]} d6 {[%emt 0:01:39]} 5. O-O {[%emt 0:07:38]} Nf6 {[%emt 0:01:10]} 6. Re1 {[%emt 0:08:42]} O-O {[%emt 0:03:07]} 7. h3 {[%emt 0:02:38]} exd4 {[%emt 0:10:40]} 8. Nxd4 {[%emt 0:00:18]} Ne5 {[%emt 0:00:04]} 9. Bf1 {[%emt 0:02:14]} Re8 {[%emt 0:00:28]} 10. f4 {[%emt 0:04:42]} Ned7 {[%emt 0:02:37]} 11. Nc3 {[%emt 0:03:42]} Bf8 {[%emt 0:01:34]} 12. g4 {[%emt 0:04:35]} g6 {[%emt 0:00:08]} 13. g5 {[%emt 0:06:02]} Nh5 {[%emt 0:00:17]} 14. Be2 {[%emt 0:01:43]} Ng7 {[%emt 0:02:09]} 15. Bg4 {[%emt 0:12:51]} c6 {[%emt 0:01:50]} 16. b3 {[%emt 0:05:27]} Nc5 {[%emt 0:01:27]} 17. Bb2 {[%emt 0:01:01]} f5 {[%emt 0:22:39]} 18. exf5 {[%emt 0:01:43]} gxf5 {[%emt 0:48:10]} 19. Be2 d5 {[%emt 0:00:00]} 20. Qd2 {[%emt 0:04:33]} Ne4 {[%emt 0:00:00]} 21. Nxe4 {[%emt 0:03:23]} fxe4 {[%emt 0:00:00]} 22. Bg4 {[%emt 0:04:04]} Qb6 {[%emt 0:02:00]} 23. Kg2 Bb4 24. c3 Bc5 25. Ne2 Be3 26. Qc2 Qc7 27. Rf1 Bxg4 {[%emt 0:00:00]} 28. hxg4 {[%emt 0:03:47]} Qd7 {[%emt 0:00:00]} 29. f5 {[%emt 0:15:56]} Bxg5 {[%emt 0:03:30]} 30. c4 Rf8 31. Rad1 h5 32. Ng3 hxg4 33. Qxe4 Rae8 34. Qxg4 Bf6 35. Bxf6 Rxf6 36. cxd5 Ref8 37. Nh5 Rxf5 {[%emt 0:00:00]} 38. Rxf5 {[%emt 0:05:05]} 1-0

[Event "Srdja Dragasevic Memorial-A 2024"]
[Site "Cetinje"]
[Date "2024.06.23"]
[Round "1.14"]
[White "Sukovic, Andrej"]
[Black "Arora Honi"]
[Result "0-1"]
[ECO "B22"]
[WhiteElo "2350"]
[BlackElo "2082"]
[Annotator "RC"]
[PlyCount "70"]
[EventDate "2024.06.23"]
[EventType "swiss"]
[EventCountry "MNE"]
[SourceTitle "playchess.com"]
[Source "ChessBase"]
[SourceQuality "1"]
[TimeControl "40/5400+30:1800+30"]

1. e4 {[%emt 0:02:25]} c5 {[%emt 0:00:09]} 2. c3 {[%emt 0:01:46]} d5 {[%emt 0:00:13]} 3. exd5 Qxd5 {[%emt 0:00:07]} 4. d4 {[%emt 0:00:14]} Nf6 {[%emt 0:00:17]} 5. Nf3 {[%emt 0:00:05]} Bg4 {[%emt 0:00:33]} 6. dxc5 {[%emt 0:00:08]} Qxd1+ 7. Kxd1 {[%emt 0:00:07]} e5 {[%emt 0:06:18]} 8. Be3 {[%emt 0:10:02]} e4 {[%emt 0:06:39]} 9. h3 {[%emt 0:00:08]} Bh5 {[%emt 0:04:40]} 10. g4 {[%emt 0:00:26]} Nxg4 {[%emt 0:00:30]} 11. hxg4 {[%emt 0:00:05]} Bxg4 {[%emt 0:00:04]} 12. Rg1 {[%emt 0:00:51]} Bxf3+ {[%emt 0:01:04]} 13. Kc2 {[%emt 0:05:17]} Nd7 {[%emt 0:07:03]} 14. b4 {[%emt 1:15:56]} h5 15. Nd2 Bg4 16. Nxe4 O-O-O 17. Bf4 Re8 18. Ng5 Rh6 19. Bc4 Rf6 20. Bg3 h4 21. Bxh4 Rf4 22. Bd3 Be2 23. Bg3 Bxd3+ 24. Kxd3 Rf5 25. f4 {[%emt 0:00:00]} g6 {[%emt 0:12:08]} 26. Ne4 {[%emt 0:00:00]} Rd5+ {[%emt 0:59:20]} 27. Kc4 {[%emt 0:00:00]} Rxe4+ {[%emt 0:00:14]} 28. Kb3 {[%emt 0:00:00]} Re3 {[%emt 0:00:38]} 29. Rae1 {[%emt 0:00:00]} Rdd3 {[%emt 0:01:21]} 30. Rxe3 {[%emt 0:00:00]} Rxe3 {[%emt 0:00:03]} 31. Be1 {[%emt 0:00:00]} Rf3 {[%emt 0:02:39]} 32. Bd2 {[%emt 0:00:01]} Bh6 {[%emt 0:00:19]} 33. Re1 {[%emt 0:00:42]} Bxf4 {[%emt 0:00:22]} 34. Re8+ {[%emt 0:00:00]} Kc7 {[%emt 0:00:09]} 35. Be1 {[%emt 0:00:01]} Re3 {[%emt 0:00:23]} 0-1

[Event "Srdja Dragasevic Memorial-A 2024"]
[Site "Cetinje"]
[Date "2024.06.23"]
[Round "1.15"]
[White "Willy, Stephen"]
[Black "Pecurica, Milos"]
[Result "1-0"]
[ECO "C11"]
[WhiteElo "2046"]
[BlackElo "2338"]
[Annotator "RC"]
[PlyCount "71"]
[EventDate "2024.06.23"]
[EventType "swiss"]
[EventCountry "MNE"]
[SourceTitle "playchess.com"]
[Source "ChessBase"]
[SourceQuality "1"]
[TimeControl "40/5400+30:1800+30"]

1. e4 {[%emt 0:00:03]} e6 {[%emt 0:00:21]} 2. d4 {[%emt 0:00:07]} d5 {[%emt 0:00:08]} 3. Nc3 {[%emt 0:00:05]} Nf6 {[%emt 0:01:26]} 4. e5 {[%emt 0:00:08]} Nfd7 {[%emt 0:00:04]} 5. f4 {[%emt 0:00:06]} c5 {[%emt 0:00:06]} 6. Nf3 {[%emt 0:00:04]} Nc6 {[%emt 0:00:04]} 7. Be3 {[%emt 0:00:05]} Be7 {[%emt 0:00:03]} 8. Qd2 {[%emt 0:00:57]} O-O {[%emt 0:00:07]} 9. h4 {[%emt 0:05:34]} f6 {[%emt 0:00:22]} 10. exf6 {[%emt 0:03:52]} Nxf6 {[%emt 0:03:16]} 11. dxc5 {[%emt 0:02:42]} Qa5 {[%emt 0:09:29]} 12. Ne2 {[%emt 0:14:52]} Qxd2+ {[%emt 0:07:35]} 13. Nxd2 {[%emt 0:00:14]} Ng4 {[%emt 0:04:31]} 14. Bg1 {[%emt 0:00:18]} Nb4 {[%emt 0:06:18]} 15. O-O-O {[%emt 0:04:00]} Nxa2+ {[%emt 0:03:57]} 16. Kb1 {[%emt 0:00:01]} Nb4 {[%emt 0:00:07]} 17. Nf3 {[%emt 0:04:28]} Na6 {[%emt 0:02:19]} 18. g3 {[%emt 0:04:40]} Nxc5 {[%emt 0:06:33]} 19. Bh3 {[%emt 0:00:33]} Nf6 {[%emt 0:04:42]} 20. Ng5 {[%emt 0:04:13]} Nfe4 {[%emt 0:49:02]} 21. Bxc5 Nxc5 22. Nd4 Bxg5 {[%emt 0:00:00]} 23. hxg5 {[%emt 0:08:48]} e5 {[%emt 0:01:30]} 24. fxe5 Bxh3 {[%emt 0:00:00]} 25. Rxh3 {[%emt 0:02:05]} Ne4 {[%emt 0:01:00]} 26. g6 hxg6 {[%emt 0:00:00]} 27. Rdh1 {[%emt 0:04:54]} Nf2 {[%emt 0:00:00]} 28. Rh8+ {[%emt 0:06:50]} Kf7 {[%emt 0:00:00]} 29. Rxf8+ {[%emt 0:00:51]} Rxf8 {[%emt 0:02:00]} 30. Re1 Ne4 31. Re3 Ke7 32. Ka2 Rc8 33. c3 Rh8 34. c4 Rh5 {[%emt 0:00:00]} 35. cxd5 {[%emt 0:13:52]} Nxg3 {[%emt 0:00:00]} 36. d6+ {[%emt 0:11:37]} 1-0

[Event "Srdja Dragasevic Memorial-A 2024"]
[Site "Cetinje"]
[Date "2024.06.23"]
[Round "1.16"]
[White "Atakisi, Umut"]
[Black "Loncar, Milenko"]
[Result "1-0"]
[ECO "B06"]
[WhiteElo "2335"]
[BlackElo "2038"]
[Annotator "RC"]
[PlyCount "73"]
[EventDate "2024.06.23"]
[EventType "swiss"]
[EventCountry "MNE"]
[SourceTitle "playchess.com"]
[Source "ChessBase"]
[SourceQuality "1"]
[TimeControl "40/5400+30:1800+30"]

1. e4 {[%emt 0:02:09]} d6 {[%emt 0:00:29]} 2. d4 {[%emt 0:00:06]} g6 {[%emt 0:00:19]} 3. Nc3 {[%emt 0:00:26]} Bg7 {[%emt 0:00:21]} 4. Be3 {[%emt 0:01:21]} c6 {[%emt 0:07:42]} 5. Qd2 {[%emt 0:01:26]} b5 {[%emt 0:02:19]} 6. h4 {[%emt 0:00:42]} h6 {[%emt 0:00:55]} 7. f3 {[%emt 0:01:33]} Ba6 {[%emt 0:02:51]} 8. a3 {[%emt 0:05:13]} Bb7 {[%emt 0:11:06]} 9. g4 {[%emt 0:11:36]} Nd7 {[%emt 0:04:06]} 10. Nh3 {[%emt 0:02:13]} a6 {[%emt 0:00:48]} 11. Nf2 {[%emt 0:03:08]} Nb6 {[%emt 1:05:04]} 12. f4 e6 {[%emt 0:00:00]} 13. h5 {[%emt 0:06:58]} Qc7 {[%emt 0:01:00]} 14. hxg6 fxg6 {[%emt 0:00:00]} 15. e5 {[%emt 0:11:40]} d5 {[%emt 0:01:00]} 16. Nd3 Nc4 17. Qf2 Nxe3 {[%emt 0:00:00]} 18. Qxe3 {[%emt 0:08:17]} Bf8 {[%emt 0:00:00]} 19. f5 {[%emt 0:06:38]} gxf5 {[%emt 0:00:00]} 20. gxf5 {[%emt 0:00:16]} exf5 {[%emt 0:00:00]} 21. Nf4 {[%emt 0:00:59]} Qf7 {[%emt 0:00:00]} 22. Be2 {[%emt 0:02:51]} O-O-O {[%emt 0:00:00]} 23. Bh5 {[%emt 0:05:22]} Qd7 {[%emt 0:00:00]} 24. Nce2 {[%emt 0:01:23]} Be7 {[%emt 0:00:00]} 25. Qh3 {[%emt 0:01:44]} Bg5 {[%emt 0:00:00]} 26. Nd3 {[%emt 0:00:31]} Kb8 {[%emt 0:00:00]} 27. Rf1 {[%emt 0:03:07]} Ne7 {[%emt 0:00:00]} 28. Nc5 {[%emt 0:00:11]} Qc8 {[%emt 0:00:00]} 29. a4 {[%emt 0:02:23]} Qc7 {[%emt 0:00:35]} 30. axb5 {[%emt 0:01:38]} Qb6 {[%emt 0:00:54]} 31. bxa6 {[%emt 0:04:45]} Bc8 {[%emt 0:01:27]} 32. Rf3 {[%emt 0:01:26]} Ka7 {[%emt 0:00:28]} 33. Rb3 {[%emt 0:00:18]} Qc7 {[%emt 0:00:21]} 34. Rb7+ {[%emt 0:00:25]} Qxb7 {[%emt 0:02:50]} 35. axb7+ {[%emt 0:00:05]} Kb8 {[%emt 0:00:13]} 36. Ra8+ {[%emt 0:00:21]} Kc7 {[%emt 0:00:16]} 37. b8=Q# {[%emt 0:00:12]} 1-0

[Event "Srdja Dragasevic Memorial-A 2024"]
[Site "Cetinje"]
[Date "2024.06.23"]
[Round "1.17"]
[White "Koljevic, Nikolina"]
[Black "Skvortsov, Andrei"]
[Result "0-1"]
[ECO "B12"]
[WhiteElo "2010"]
[BlackElo "2331"]
[Annotator "RC"]
[PlyCount "30"]
[EventDate "2024.06.23"]
[EventType "swiss"]
[EventCountry "MNE"]
[SourceTitle "playchess.com"]
[Source "ChessBase"]
[SourceQuality "1"]
[TimeControl "40/5400+30:1800+30"]

1. e4 {[%emt 0:00:03]} c6 {[%emt 0:04:20]} 2. d4 {[%emt 0:00:05]} d5 {[%emt 0:00:06]} 3. e5 {[%emt 0:00:10]} c5 4. dxc5 {[%emt 0:00:22]} e6 {[%emt 0:01:19]} 5. Be3 {[%emt 0:01:00]} Nd7 6. Bb5 Ne7 7. c3 Nc6 8. Bxc6 bxc6 9. Nf3 Qc7 10. Qa4 Nxc5 11. Bxc5 Bxc5 12. O-O Rb8 13. b3 O-O 14. Nd4 Rb6 15. f4 Ra6 {[%emt 0:05:35]} 0-1

[Event "Srdja Dragasevic Memorial-A 2024"]
[Site "Cetinje"]
[Date "2024.06.23"]
[Round "1.18"]
[White "Vujosevic, Vladimir"]
[Black "Bilenkiy, Maksym"]
[Result "1-0"]
[ECO "B12"]
[WhiteElo "2306"]
[BlackElo "1978"]
[Annotator "RC"]
[PlyCount "85"]
[EventDate "2024.06.23"]
[EventType "swiss"]
[EventCountry "MNE"]
[SourceTitle "playchess.com"]
[Source "ChessBase"]
[SourceQuality "1"]
[TimeControl "40/5400+30:1800+30"]

1. e4 {[%emt 0:02:50]} c6 {[%emt 0:00:19]} 2. d4 {[%emt 0:00:25]} d5 {[%emt 0:00:06]} 3. e5 {[%emt 0:00:29]} Bf5 {[%emt 0:00:30]} 4. c3 {[%emt 0:00:30]} e6 {[%emt 0:01:21]} 5. Be3 {[%emt 0:01:22]} Qb6 {[%emt 0:00:54]} 6. Qb3 {[%emt 0:02:44]} Nd7 {[%emt 0:01:20]} 7. Nd2 {[%emt 0:01:09]} Ne7 {[%emt 0:09:28]} 8. f4 {[%emt 0:02:03]} Rc8 {[%emt 0:02:19]} 9. Ngf3 {[%emt 0:03:11]} h6 {[%emt 0:00:47]} 10. Be2 {[%emt 0:00:36]} c5 {[%emt 0:02:46]} 11. dxc5 {[%emt 0:10:50]} Nxc5 {[%emt 0:00:22]} 12. Qxb6 {[%emt 0:04:43]} axb6 {[%emt 0:00:09]} 13. Bb5+ {[%emt 0:00:40]} Nc6 {[%emt 0:00:20]} 14. b4 {[%emt 0:03:18]} Nd7 {[%emt 0:05:03]} 15. O-O {[%emt 0:09:07]} Be7 {[%emt 0:00:56]} 16. a3 {[%emt 0:04:25]} Na7 {[%emt 0:02:47]} 17. Bxd7+ {[%emt 0:00:53]} Kxd7 {[%emt 0:01:47]} 18. Bxb6 {[%emt 0:07:09]} Nb5 {[%emt 0:00:30]} 19. Nd4 {[%emt 0:00:30]} Nxc3 {[%emt 0:00:30]} 20. Nxf5 {[%emt 0:00:30]} exf5 {[%emt 0:01:19]} 21. Nb3 {[%emt 0:09:12]} Rc4 {[%emt 0:03:03]} 22. g3 {[%emt 0:02:11]} Na4 {[%emt 0:00:47]} 23. Bd4 {[%emt 0:00:28]} Rhc8 {[%emt 0:00:44]} 24. Rf2 {[%emt 0:01:50]} g6 {[%emt 0:02:13]} 25. Rd2 {[%emt 0:08:40]} Rc2 {[%emt 0:01:28]} 26. Rad1 {[%emt 0:00:34]} Rxd2 {[%emt 0:00:29]} 27. Rxd2 {[%emt 0:00:10]} Rc4 {[%emt 0:01:33]} 28. Kf2 {[%emt 0:02:52]} b6 {[%emt 0:00:17]} 29. Ke3 {[%emt 0:00:24]} Rc8 {[%emt 0:06:49]} 30. Kd3 {[%emt 0:00:34]} h5 {[%emt 0:00:30]} 31. h4 {[%emt 0:00:30]} Rc4 {[%emt 0:03:15]} 32. Rd1 {[%emt 0:00:10]} Bd8 {[%emt 0:00:30]} 33. Ba1 {[%emt 0:00:30]} Rc8 {[%emt 0:00:30]} 34. Nd4 {[%emt 0:00:30]} Be7 {[%emt 0:00:30]} 35. Kd2 {[%emt 0:00:30]} Rc4 {[%emt 0:01:13]} 36. Rc1 {[%emt 0:00:30]} Bf8 {[%emt 0:00:00]} 37. Rc2 {[%emt 0:00:30]} Be7 {[%emt 0:01:00]} 38. Kd3 {[%emt 0:00:30]} Rxc2 {[%emt 0:00:00]} 39. Kxc2 {[%emt 0:00:30]} f6 {[%emt 0:00:17]} 40. e6+ {[%emt 0:00:30]} Ke8 {[%emt 0:00:00]} 41. Kb3 {[%emt 0:03:58]} b5 {[%emt 0:17:32]} 42. Nxb5 {[%emt 0:00:30]} Nb6 {[%emt 0:00:30]} 43. Bd4 {[%emt 0:00:30]} 1-0